fUSD/lending_fUSD_20260524
["ID","MTS","AMOUNT","RATE_DAILY","PERIOD"]
[422873362,1779556249000,-229.62867103,0.00022148,2]
[422873364,1779556249000,-701.23846563,0.00022148,2]
[422873366,1779556249000,-151.0,0.000222,2]
[422873365,1779556249000,-2727.68441305,0.00022148,2]
[422873363,1779556249000,-910.96345991,0.00022148,2]
[422873368,1779556249000,-1837.0,0.000223,7]
[422873401,1779556249000,-2500.0,0.00023,2]
[422873400,1779556249000,-500.0,0.00022995,14]
[422873397,1779556249000,-13790.0,0.000229,2]
[422873432,1779556249000,-200.0,0.00023248,2]
[422873430,1779556249000,-208.13956426,0.000232,2]
[422873428,1779556249000,-251.11897888,0.00023133,2]
[422873437,1779556249000,-3546.0,0.00023383,2]
[422873429,1779556249000,-191.03159967,0.0002314,2]
[422873431,1779556249000,-288.09420174,0.00023205,7]
[422873434,1779556249000,-288.09420174,0.00023343,7]
[422873433,1779556249000,-1000.0,0.00023299,2]
[422873438,1779556249000,-1355.0,0.00023383,2]
[422873435,1779556249000,-1000.0,0.00023381,2]
[422873436,1779556249000,-150.0,0.00023383,2]
[422873441,1779556249000,-1224.0,0.00023383,2]
[422873443,1779556249000,-6060.0,0.00023383,2]
[422873445,1779556249000,-1000.0,0.00023455,2]
[422873442,1779556249000,-3635.0,0.00023383,2]
[422873448,1779556249000,-1000.0,0.00023521,2]
[422873444,1779556249000,-1000.0,0.00023435,2]
[422873450,1779556249000,-288.09420174,0.00023618,14]
[422873447,1779556249000,-288.09420174,0.00023481,7]
[422873446,1779556249000,-10245.0,0.00023463,7]
[422873449,1779556249000,-16272.65,0.00023598,2]
[422873440,1779556249000,-1271.0,0.00023383,2]
[422873451,1779556249000,-6984.0,0.00023654,2]
[422873453,1779556249000,-1776.30922209,0.00023681,2]
[422873399,1779556249000,-500.0,0.00022946,7]
[422873427,1779556249000,-374.31742255,0.00023133,2]
[422873425,1779556249000,-200.0,0.00023133,2]
[422873439,1779556249000,-625.0,0.00023383,2]
[422873426,1779556249000,-2494.55939288,0.00023133,2]
[422873402,1779556249000,-11213.0,0.00023,20]
[422873420,1779556249000,-251.11897888,0.00023133,2]
[422873398,1779556249000,-288.09420174,0.00022929,2]
[422873391,1779556249000,-167.16,0.00022603,2]
[422873452,1779556249000,-260.4103811,0.00023681,2]
[422873404,1779556249000,-162.0,0.00023,7]
[422873403,1779556249000,-213.20448207,0.00023,20]
[422873406,1779556249000,-233.0,0.00023,2]
[422873405,1779556249000,-194.0,0.00023,2]
[422873409,1779556249000,-1126.92618535,0.0002305,2]
[422873408,1779556249000,-579.0,0.00023041,2]
[422873412,1779556249000,-1321.41,0.000231,2]
[422873407,1779556249000,-215.31523495,0.00023,7]
[422873414,1779556249000,-795.34,0.000231,2]
[422873413,1779556249000,-3445.38,0.000231,2]
[422873423,1779556249000,-233.5188934,0.00023133,2]
[422873416,1779556249000,-3867.58,0.000231,2]
[422873424,1779556249000,-200.0,0.00023133,2]
[422873419,1779556249000,-437.5283517,0.00023129,2]
[422873422,1779556249000,-994.29561143,0.00023133,2]
[422873421,1779556249000,-1712.93078311,0.00023133,2]
[422873418,1779556249000,-11486.84,0.000231,2]
[422873415,1779556249000,-6010.76,0.000231,2]
[422873411,1779556249000,-288.09420174,0.00023067,2]
[422873410,1779556249000,-590.51912908,0.0002305,2]
[422873417,1779556249000,-14358.55,0.000231,2]
[422873498,1779556250000,-2000.0,0.00024,2]
[422873494,1779556250000,-1037.95767353,0.00024,2]
[422873501,1779556250000,-2000.0,0.00024,2]
[422873497,1779556250000,-2000.0,0.00024,2]
[422873493,1779556250000,-2000.0,0.0002399,2]
[422873490,1779556250000,-2000.0,0.0002399,2]
[422873492,1779556250000,-2000.0,0.0002399,2]
[422873486,1779556250000,-2000.0,0.0002398,2]
[422873485,1779556250000,-2000.0,0.0002397,2]
[422873487,1779556250000,-2000.0,0.0002398,2]
[422873500,1779556250000,-175.14,0.00024,2]
[422873491,1779556250000,-2000.0,0.0002399,2]
[422873496,1779556250000,-1255.0653188,0.00024,2]
[422873509,1779556250000,-1200.0,0.00024042,7]
[422873499,1779556250000,-408.66,0.00024,2]
[422873502,1779556250000,-2000.0,0.00024,2]
[422873503,1779556250000,-2500.0,0.00024,2]
[422873504,1779556250000,-197.41451163,0.00024,2]
[422873505,1779556250000,-233.0,0.00024,2]
[422873512,1779556250000,-1903.0,0.0002411,2]
[422873510,1779556250000,-200.0,0.00024044,2]
[422873508,1779556250000,-288.09420174,0.00024032,30]
[422873506,1779556250000,-500.0,0.00024,2]
[422873507,1779556250000,-219.78656142,0.00024025,21]
[422873511,1779556250000,-1000.0,0.00024094,2]
[422873515,1779556250000,-652.73,0.0002411,2]
[422873482,1779556250000,-2000.0,0.0002396,2]
[422873495,1779556250000,-3600.0,0.00024,2]
[422873479,1779556250000,-1122.82185534,0.00023951,2]
[422873460,1779556250000,-260.4103811,0.00023681,2]
[422873477,1779556250000,-1374.88866047,0.0002395,2]
[422873463,1779556250000,-5530.0,0.000237,3]
[422873454,1779556250000,-1031.08454906,0.00023681,2]
[422873455,1779556250000,-242.15909246,0.00023681,2]
[422873456,1779556250000,-200.0,0.00023681,2]
[422873459,1779556250000,-388.16716718,0.00023681,2]
[422873461,1779556250000,-496.14,0.000237,2]
[422873457,1779556250000,-200.0,0.00023681,2]
[422873462,1779556250000,-1837.0,0.000237,7]
[422873458,1779556250000,-2586.85809042,0.00023681,2]
[422873464,1779556250000,-288.09420174,0.00023756,14]
[422873466,1779556250000,-2000.0,0.0002388,2]
[422873467,1779556250000,-2000.0,0.0002389,2]
[422873475,1779556250000,-2000.0,0.0002394,2]
[422873484,1779556250000,-2000.0,0.0002397,2]
[422873474,1779556250000,-2000.0,0.0002393,2]
[422873469,1779556250000,-288.09420174,0.00023894,14]
[422873465,1779556250000,-541.40687444,0.0002387,2]
[422873468,1779556250000,-500.0,0.0002389,2]
[422873473,1779556250000,-2000.0,0.0002392,2]
[422873470,1779556250000,-2000.0,0.000239,2]
[422873472,1779556250000,-2000.0,0.0002391,2]
[422873471,1779556250000,-250.0,0.000239,2]
[422873478,1779556250000,-1356.20451047,0.0002395,2]
[422873489,1779556250000,-866.9447902,0.0002398,2]
[422873488,1779556250000,-2000.0,0.0002398,2]
[422873480,1779556250000,-2000.0,0.0002396,2]
[422873483,1779556250000,-2000.0,0.0002397,2]
[422873481,1779556250000,-2000.0,0.0002396,2]
[422873476,1779556250000,-2000.0,0.0002395,2]
[422873519,1779556250000,-288.09420174,0.0002417,30]
[422873513,1779556250000,-1332.1,0.0002411,2]
[422873517,1779556250000,-319.84,0.0002411,2]
[422873540,1779556250000,-5530.0,0.000245,5]
[422873543,1779556250000,-288.09420174,0.00024584,60]
[422873563,1779556250000,-504.633568,0.00024658,2]
[422873553,1779556250000,-504.633568,0.00024658,2]
[422873558,1779556250000,-504.633568,0.00024658,2]
[422873564,1779556250000,-504.633568,0.00024658,2]
[422873562,1779556250000,-504.633568,0.00024658,2]
[422873555,1779556250000,-504.633568,0.00024658,2]
[422873557,1779556250000,-504.633568,0.00024658,2]
[422873552,1779556250000,-504.633568,0.00024658,2]
[422873554,1779556250000,-504.633568,0.00024658,2]
[422873556,1779556250000,-504.633568,0.00024658,2]
[422873559,1779556250000,-504.633568,0.00024658,2]
[422873542,1779556250000,-168.3853837,0.0002455,15]
[422873560,1779556250000,-504.633568,0.00024658,2]
[422873565,1779556250000,-504.633568,0.00024658,2]
[422873567,1779556250000,-504.633568,0.00024658,2]
[422873566,1779556250000,-504.633568,0.00024658,2]
[422873568,1779556250000,-504.633564,0.00024658,2]
[422873577,1779556250000,-200.0,0.00024708,2]
[422873569,1779556250000,-1000.0,0.00024658,2]
[422873574,1779556250000,-151.0,0.00024658,2]
[422873571,1779556250000,-151.0,0.00024658,2]
[422873573,1779556250000,-151.0,0.00024658,2]
[422873572,1779556250000,-151.0,0.00024658,2]
[422873576,1779556250000,-306.43699999,0.00024658,2]
[422873518,1779556250000,-782.82,0.0002411,2]
[422873570,1779556250000,-151.0,0.00024658,2]
[422873561,1779556250000,-504.633568,0.00024658,2]
[422873541,1779556250000,-230.58214499,0.00024512,2]
[422873575,1779556250000,-151.0,0.00024658,2]
[422873548,1779556250000,-1233.93,0.00024658,2]
[422873551,1779556250000,-504.633568,0.00024658,2]
[422873516,1779556250000,-456.91,0.0002411,2]
[422873520,1779556250000,-3755.92895116,0.0002421,2]
[422873514,1779556250000,-932.47,0.0002411,2]
[422873525,1779556250000,-270.0455652,0.00024229,2]
[422873524,1779556250000,-695.39793187,0.00024227,2]
[422873522,1779556250000,-4314.28487652,0.00024225,2]
[422873523,1779556250000,-621.78829552,0.00024227,2]
[422873526,1779556250000,-1842.0326633,0.00024229,2]
[422873528,1779556250000,-251.11897888,0.00024229,2]
[422873529,1779556250000,-200.0,0.00024229,2]
[422873530,1779556250000,-200.0,0.00024229,2]
[422873527,1779556250000,-1069.23467737,0.00024229,2]
[422873534,1779556250000,-1000.0,0.00024247,2]
[422873521,1779556250000,-174.61919141,0.00024225,2]
[422873533,1779556250000,-270.0455652,0.00024229,2]
[422873537,1779556250000,-1000.0,0.00024373,2]
[422873546,1779556250000,-1000.0,0.00024653,2]
[422873547,1779556250000,-343.12,0.00024658,8]
[422873545,1779556250000,-1000.0,0.0002461,2]
[422873550,1779556250000,-504.633568,0.00024658,2]
[422873544,1779556250000,-1000.0,0.00024603,2]
[422873549,1779556250000,-504.633568,0.00024658,2]
[422873538,1779556250000,-288.09420174,0.00024446,60]
[422873536,1779556250000,-3145.9,0.00024324,2]
[422873535,1779556250000,-288.09420174,0.00024308,60]
[422873532,1779556250000,-402.52935237,0.00024229,2]
[422873531,1779556250000,-2682.57183977,0.00024229,2]
[422873539,1779556250000,-1000.0,0.000245,2]
[422873618,1779556251000,-112093.54813104,0.00025,7]
[422873613,1779556251000,-169.65143633,0.00025,2]
[422873611,1779556251000,-7227.94914184,0.00025,2]
[422873612,1779556251000,-2231.10537802,0.00025,2]
[422873615,1779556251000,-1525068.09183777,0.00025,2]
[422873609,1779556251000,-619.2867286,0.00025,2]
[422873614,1779556251000,-150.0,0.00025,2]
[422873621,1779556251000,-7071.2931063,0.00025,21]
[422873620,1779556251000,-2500.0,0.00025,2]
[422873619,1779556251000,-626.70394033,0.00025,5]
[422873617,1779556251000,-2974.8,0.00025,60]
[422873610,1779556251000,-3085.68758496,0.00025,2]
[422873631,1779556251000,-247.65766967,0.00025,2]
[422873622,1779556251000,-56617.88213438,0.00025,7]
[422873624,1779556251000,-475.153014,0.00025,60]
[422873625,1779556251000,-215.31523495,0.00025,7]
[422873623,1779556251000,-543029.03535517,0.00025,2]
[422873628,1779556251000,-10501.47372246,0.00025,2]
[422873627,1779556251000,-200.0,0.00025,14]
[422873626,1779556251000,-1000.0,0.00025,30]
[422873633,1779556251000,-549.59,0.00025026,4]
[422873629,1779556251000,-8392.75,0.00025,2]
[422873630,1779556251000,-166.52257699,0.00025,10]
[422873632,1779556251000,-500.0,0.00025026,4]
[422873646,1779556251000,-2884.75459676,0.00025325,2]
[422873605,1779556251000,-210.38423507,0.00025,2]
[422873616,1779556251000,-958.0,0.00025,5]
[422873604,1779556251000,-1129.46472604,0.00025,2]
[422873591,1779556251000,-2781.82699784,0.00024777,2]
[422873602,1779556251000,-3548.03,0.00024967,7]
[422873635,1779556251000,-934.0,0.00025082,2]
[422873578,1779556251000,-200.0,0.00024708,2]
[422873580,1779556251000,-200.0,0.00024734,2]
[422873581,1779556251000,-200.0,0.00024734,2]
[422873582,1779556251000,-200.0,0.00024734,2]
[422873583,1779556251000,-200.0,0.00024735,2]
[422873584,1779556251000,-1000.0,0.00024753,2]
[422873585,1779556251000,-280.03725111,0.00024777,2]
[422873586,1779556251000,-1910.18787185,0.00024777,2]
[422873579,1779556251000,-200.0,0.00024733,2]
[422873589,1779556251000,-200.0,0.00024777,2]
[422873587,1779556251000,-260.4103811,0.00024777,2]
[422873599,1779556251000,-200.0,0.0002484,2]
[422873590,1779556251000,-200.0,0.00024777,2]
[422873588,1779556251000,-1108.79636043,0.00024777,2]
[422873592,1779556251000,-329.04298078,0.00024777,2]
[422873595,1779556251000,-437.4,0.00024795,2]
[422873593,1779556251000,-280.03725111,0.00024777,2]
[422873597,1779556251000,-150.0,0.00024799,2]
[422873596,1779556251000,-200.0,0.00024799,2]
[422873607,1779556251000,-1000.0,0.00025,2]
[422873608,1779556251000,-540.0,0.00025,2]
[422873606,1779556251000,-1809.78961192,0.00025,2]
[422873603,1779556251000,-15790.95065582,0.00024999,7]
[422873601,1779556251000,-306.43699999,0.00024962,2]
[422873600,1779556251000,-250.0,0.000249,2]
[422873594,1779556251000,-450.0,0.00024795,2]
[422873645,1779556251000,-200.0,0.00025325,2]
[422873598,1779556251000,-150.0,0.00024799,2]
[422873647,1779556251000,-290.3986294,0.00025325,2]
[422873667,1779556251000,-200.0,0.00025873,2]
[422873671,1779556251000,-250.0,0.000259,2]
[422873669,1779556251000,-301.14337869,0.00025873,2]
[422873670,1779556251000,-306.43699999,0.00025875,2]
[422873674,1779556251000,-151.0,0.00026,2]
[422873691,1779556251000,-10231.0,0.000261,2]
[422873678,1779556251000,-550.0,0.00026,2]
[422873675,1779556251000,-2500.0,0.00026,2]
[422873676,1779556251000,-4587.35855787,0.00026,2]
[422873677,1779556251000,-219.55834854,0.00026,2]
[422873684,1779556251000,-700.41121843,0.000261,2]
[422873679,1779556251000,-254.10288853,0.000261,2]
[422873665,1779556251000,-491.06773329,0.00025873,2]
[422873681,1779556251000,-330.0,0.000261,2]
[422873680,1779556251000,-760.0,0.000261,2]
[422873683,1779556251000,-287.17756314,0.000261,2]
[422873686,1779556251000,-158.0,0.000261,2]
[422873685,1779556251000,-659.0,0.000261,2]
[422873687,1779556251000,-206.0,0.000261,2]
[422873689,1779556251000,-157.0,0.000261,2]
[422873688,1779556251000,-178.0,0.000261,2]
[422873694,1779556251000,-2027.0,0.000261,2]
[422873693,1779556251000,-440.0,0.000261,2]
[422873692,1779556251000,-1024.0,0.000261,2]
[422873690,1779556251000,-3019.0,0.000261,2]
[422873634,1779556251000,-200.0,0.00025047,2]
[422873682,1779556251000,-1378.0,0.000261,2]
[422873664,1779556251000,-200.0,0.00025873,2]
[422873695,1779556251000,-1257.0,0.000261,2]
[422873663,1779556251000,-2054.15682156,0.00025873,2]
[422873636,1779556251000,-1837.0,0.000251,7]
[422873639,1779556251000,-200.0,0.00025297,2]
[422873643,1779556251000,-200.0,0.00025325,2]
[422873641,1779556251000,-1980.8648231,0.00025325,2]
[422873638,1779556251000,-306.43699999,0.00025266,2]
[422873644,1779556251000,-1149.82182577,0.00025325,2]
[422873637,1779556251000,-500.0,0.00025138,7]
[422873666,1779556251000,-280.03725111,0.00025873,2]
[422873640,1779556251000,-290.3986294,0.00025325,2]
[422873652,1779556251000,-167.16,0.00025548,2]
[422873648,1779556251000,-206.5963975,0.00025397,2]
[422873650,1779556251000,-16272.65,0.00025397,7]
[422873653,1779556251000,-200.0,0.0002555,2]
[422873642,1779556251000,-270.0455652,0.00025325,2]
[422873654,1779556251000,-306.43699999,0.00025571,2]
[422873668,1779556251000,-2991.49051684,0.00025873,2]
[422873651,1779556251000,-151.0,0.000255,2]
[422873661,1779556251000,-200.0,0.00025806,2]
[422873672,1779556251000,-500.0,0.000259,14]
[422873662,1779556251000,-261.08289828,0.00025873,2]
[422873656,1779556251000,-3735.25102726,0.00025594,2]
[422873673,1779556251000,-609.42437611,0.0002599,2]
[422873659,1779556251000,-934.0,0.00025637,2]
[422873655,1779556251000,-252.23861428,0.00025594,2]
[422873658,1779556251000,-200.0,0.00025636,2]
[422873657,1779556251000,-1000.0,0.000256,2]
[422873649,1779556251000,-152.38455469,0.00025397,2]
[422873660,1779556251000,-206.7,0.0002578,2]
[422873738,1779556252000,-358.5572485,0.00026397,2]
[422873731,1779556252000,-286.5200113,0.00026397,2]
[422873742,1779556252000,-290.3986294,0.00026421,2]
[422873735,1779556252000,-370.01064994,0.00026397,2]
[422873736,1779556252000,-278.08227966,0.00026397,2]
[422873724,1779556252000,-355.01729594,0.00026397,2]
[422873730,1779556252000,-285.29702186,0.00026397,2]
[422873728,1779556252000,-299.90549996,0.00026397,2]
[422873726,1779556252000,-349.23392296,0.00026397,2]
[422873721,1779556252000,-253.193513,0.00026397,2]
[422873733,1779556252000,-330.35192104,0.00026397,2]
[422873743,1779556252000,-200.0,0.00026421,2]
[422873748,1779556252000,-1837.0,0.000267,7]
[422873737,1779556252000,-350.5328743,0.00026397,2]
[422873740,1779556252000,-345.5541896,0.00026397,2]
[422873739,1779556252000,-344.71024894,0.00026397,2]
[422873741,1779556252000,-27886.07617148,0.000264,2]
[422873732,1779556252000,-310.5446124,0.00026397,2]
[422873745,1779556252000,-306.437,0.00026484,2]
[422873756,1779556252000,-177.0,0.00026731,2]
[422873747,1779556252000,-293.0,0.0002655,2]
[422873744,1779556252000,-200.0,0.00026432,2]
[422873755,1779556252000,-383.0,0.00026731,2]
[422873746,1779556252000,-150.0,0.0002655,2]
[422873729,1779556252000,-288.89424664,0.00026397,2]
[422873734,1779556252000,-152.38455469,0.00026397,2]
[422873725,1779556252000,-325.07033754,0.00026397,2]
[422873710,1779556252000,-150.0,0.00026383,2]
[422873723,1779556252000,-362.32934586,0.00026397,2]
[422873749,1779556252000,-7298.0,0.000267,7]
[422873696,1779556252000,-157.0,0.000261,2]
[422873699,1779556252000,-934.0,0.00026192,3]
[422873697,1779556252000,-371.0,0.000261,2]
[422873701,1779556252000,-3145.9,0.00026296,2]
[422873700,1779556252000,-1200.0,0.00026234,7]
[422873703,1779556252000,-1256.9,0.00026338,2]
[422873698,1779556252000,-306.437,0.0002618,2]
[422873702,1779556252000,-1256.9,0.00026338,2]
[422873707,1779556252000,-1256.93,0.00026342,2]
[422873705,1779556252000,-1256.9,0.0002634,2]
[422873704,1779556252000,-1256.9,0.0002634,2]
[422873727,1779556252000,-338.0236607,0.00026397,2]
[422873706,1779556252000,-1256.9,0.0002634,2]
[422873711,1779556252000,-3546.0,0.00026383,2]
[422873713,1779556252000,-625.0,0.00026383,2]
[422873715,1779556252000,-1224.0,0.00026383,2]
[422873712,1779556252000,-1354.0,0.00026383,2]
[422873714,1779556252000,-1271.0,0.00026383,2]
[422873709,1779556252000,-1256.9,0.00026342,2]
[422873719,1779556252000,-283.93058798,0.00026397,2]
[422873716,1779556252000,-3635.0,0.00026383,2]
[422873717,1779556252000,-6060.0,0.00026383,2]
[422873718,1779556252000,-297.6775332,0.00026397,2]
[422873720,1779556252000,-206.5963975,0.00026397,2]
[422873722,1779556252000,-350.78122026,0.00026397,2]
[422873708,1779556252000,-1256.9,0.00026342,2]
[422873751,1779556252000,-221.0,0.00026721,2]
[422873753,1779556252000,-2641.0,0.00026728,2]
[422873795,1779556252000,-500.0,0.00027397,2]
[422873785,1779556252000,-500.0,0.0002733,7]
[422873788,1779556252000,-8246.80995086,0.0002739,2]
[422873787,1779556252000,-4174.46917451,0.0002739,2]
[422873794,1779556252000,-500.0,0.00027397,2]
[422873784,1779556252000,-934.0,0.00027301,4]
[422873793,1779556252000,-500.0,0.00027397,2]
[422873789,1779556252000,-219.29,0.00027397,2]
[422873791,1779556252000,-306.43,0.00027397,30]
[422873790,1779556252000,-306.43,0.00027397,2]
[422873796,1779556252000,-500.0,0.00027397,2]
[422873798,1779556252000,-500.0,0.00027397,2]
[422873797,1779556252000,-500.0,0.00027397,2]
[422873786,1779556252000,-4510.56905239,0.0002739,7]
[422873799,1779556252000,-500.0,0.00027397,2]
[422873801,1779556252000,-500.0,0.00027397,2]
[422873802,1779556252000,-500.0,0.00027397,2]
[422873804,1779556252000,-500.0,0.00027397,2]
[422873810,1779556252000,-429.66865391,0.00027397,2]
[422873807,1779556252000,-500.0,0.00027397,2]
[422873805,1779556252000,-500.0,0.00027397,2]
[422873803,1779556252000,-500.0,0.00027397,2]
[422873809,1779556252000,-500.0,0.00027397,2]
[422873806,1779556252000,-500.0,0.00027397,2]
[422873811,1779556252000,-150.0,0.00027397,2]
[422873750,1779556252000,-249.0,0.0002672,2]
[422873808,1779556252000,-500.0,0.00027397,2]
[422873800,1779556252000,-500.0,0.00027397,2]
[422873783,1779556252000,-161.20760437,0.000273,30]
[422873792,1779556252000,-236.65197507,0.00027397,7]
[422873780,1779556252000,-5000.0,0.00027277,2]
[422873752,1779556252000,-288.0,0.00026721,2]
[422873754,1779556252000,-895.0,0.00026731,2]
[422873758,1779556252000,-306.43,0.00026788,2]
[422873769,1779556252000,-1050.2903339,0.00027,2]
[422873768,1779556252000,-250.0,0.00027,2]
[422873757,1779556252000,-934.0,0.00026746,3]
[422873759,1779556252000,-200.0,0.0002685,2]
[422873761,1779556252000,-164.0,0.0002685,2]
[422873778,1779556252000,-5000.0,0.00027277,2]
[422873760,1779556252000,-200.0,0.0002685,2]
[422873767,1779556252000,-2500.0,0.00027,2]
[422873762,1779556252000,-250.0,0.000269,2]
[422873764,1779556252000,-721.12765534,0.00026966,2]
[422873766,1779556252000,-200.0,0.00026969,2]
[422873763,1779556252000,-644.79446245,0.00026966,2]
[422873771,1779556252000,-2988.673048,0.00027,2]
[422873776,1779556252000,-200.0,0.00027228,2]
[422873781,1779556252000,-5000.0,0.00027277,2]
[422873782,1779556252000,-1513.349408,0.00027295,2]
[422873772,1779556252000,-414.36512351,0.00027028,21]
[422873770,1779556252000,-530.0,0.00027,2]
[422873773,1779556252000,-306.43,0.00027093,2]
[422873775,1779556252000,-16272.65,0.00027196,7]
[422873774,1779556252000,-383.79907294,0.00027111,2]
[422873777,1779556252000,-5000.0,0.00027277,2]
[422873779,1779556252000,-5000.0,0.00027277,2]
[422873765,1779556252000,-301.14337869,0.00026969,2]
[422873852,1779556253000,-1000.0,0.00027397,2]
[422873862,1779556253000,-1000.0,0.00027397,2]
[422873853,1779556253000,-1000.0,0.00027397,2]
[422873850,1779556253000,-1000.0,0.00027397,2]
[422873849,1779556253000,-1000.0,0.00027397,2]
[422873840,1779556253000,-1000.0,0.00027397,2]
[422873847,1779556253000,-1000.0,0.00027397,2]
[422873846,1779556253000,-1000.0,0.00027397,2]
[422873848,1779556253000,-1000.0,0.00027397,2]
[422873854,1779556253000,-1000.0,0.00027397,2]
[422873844,1779556253000,-1000.0,0.00027397,2]
[422873845,1779556253000,-1000.0,0.00027397,2]
[422873851,1779556253000,-1000.0,0.00027397,2]
[422873870,1779556253000,-1000.0,0.00027397,2]
[422873861,1779556253000,-1000.0,0.00027397,2]
[422873859,1779556253000,-1000.0,0.00027397,2]
[422873857,1779556253000,-1000.0,0.00027397,2]
[422873856,1779556253000,-1000.0,0.00027397,2]
[422873858,1779556253000,-1000.0,0.00027397,2]
[422873860,1779556253000,-1000.0,0.00027397,2]
[422873864,1779556253000,-1000.0,0.00027397,2]
[422873865,1779556253000,-1000.0,0.00027397,2]
[422873867,1779556253000,-1000.0,0.00027397,2]
[422873868,1779556253000,-1000.0,0.00027397,2]
[422873873,1779556253000,-1000.0,0.00027397,2]
[422873843,1779556253000,-1000.0,0.00027397,2]
[422873855,1779556253000,-1000.0,0.00027397,2]
[422873842,1779556253000,-1000.0,0.00027397,2]
[422873812,1779556253000,-1000.0,0.00027397,2]
[422873839,1779556253000,-1000.0,0.00027397,2]
[422873813,1779556253000,-1000.0,0.00027397,2]
[422873814,1779556253000,-1000.0,0.00027397,2]
[422873817,1779556253000,-1000.0,0.00027397,2]
[422873825,1779556253000,-1000.0,0.00027397,2]
[422873818,1779556253000,-1000.0,0.00027397,2]
[422873815,1779556253000,-1000.0,0.00027397,2]
[422873816,1779556253000,-1000.0,0.00027397,2]
[422873822,1779556253000,-1000.0,0.00027397,2]
[422873820,1779556253000,-1000.0,0.00027397,2]
[422873824,1779556253000,-1000.0,0.00027397,2]
[422873821,1779556253000,-1000.0,0.00027397,2]
[422873823,1779556253000,-1000.0,0.00027397,2]
[422873827,1779556253000,-1000.0,0.00027397,2]
[422873829,1779556253000,-1000.0,0.00027397,2]
[422873838,1779556253000,-1000.0,0.00027397,2]
[422873826,1779556253000,-1000.0,0.00027397,2]
[422873837,1779556253000,-1000.0,0.00027397,2]
[422873828,1779556253000,-1000.0,0.00027397,2]
[422873830,1779556253000,-1000.0,0.00027397,2]
[422873831,1779556253000,-1000.0,0.00027397,2]
[422873836,1779556253000,-1000.0,0.00027397,2]
[422873833,1779556253000,-1000.0,0.00027397,2]
[422873834,1779556253000,-1000.0,0.00027397,2]
[422873835,1779556253000,-1000.0,0.00027397,2]
[422873832,1779556253000,-1000.0,0.00027397,2]
[422873841,1779556253000,-1000.0,0.00027397,2]
[422873869,1779556253000,-1000.0,0.00027397,2]
[422873819,1779556253000,-1000.0,0.00027397,2]
[422873871,1779556253000,-1000.0,0.00027397,2]
[422873900,1779556253000,-151.0,0.00027397,2]
[422873903,1779556253000,-151.0,0.00027397,2]
[422873902,1779556253000,-151.0,0.00027397,2]
[422873908,1779556253000,-151.0,0.00027397,2]
[422873907,1779556253000,-151.0,0.00027397,2]
[422873905,1779556253000,-151.0,0.00027397,2]
[422873906,1779556253000,-151.0,0.00027397,2]
[422873904,1779556253000,-151.0,0.00027397,2]
[422873910,1779556253000,-1233.93,0.00027397,2]
[422873911,1779556253000,-714.903553,0.00027397,2]
[422873915,1779556253000,-714.903553,0.00027397,2]
[422873914,1779556253000,-714.903553,0.00027397,2]
[422873901,1779556253000,-151.0,0.00027397,2]
[422873912,1779556253000,-714.903553,0.00027397,2]
[422873919,1779556253000,-714.903553,0.00027397,2]
[422873920,1779556253000,-714.903553,0.00027397,2]
[422873917,1779556253000,-714.903553,0.00027397,2]
[422873918,1779556253000,-714.903553,0.00027397,2]
[422873922,1779556253000,-714.903553,0.00027397,2]